fUSD/lending_fUSD_20250530
["ID","MTS","AMOUNT","RATE_DAILY","PERIOD"]
[363184993,1748619040736,-420.0,0.00021917,2]
[363184994,1748619040745,-420.0,0.00021917,2]
[363184995,1748619040754,-420.0,0.00021917,2]
[363184996,1748619040764,-420.0,0.00021917,2]
[363184997,1748619040774,-420.0,0.00021917,2]
[363184998,1748619040787,-420.0,0.00021917,2]
[363184999,1748619040796,-420.0,0.00021917,2]
[363185000,1748619040805,-420.0,0.00021917,2]
[363185001,1748619040815,-420.0,0.00021917,2]
[363185002,1748619040827,-476.72,0.00021917,2]
[363185003,1748619040839,-420.0,0.00021917,2]
[363185004,1748619040849,-420.0,0.00021917,2]
[363185005,1748619040859,-420.0,0.00021917,2]
[363185006,1748619040868,-420.0,0.00021917,2]
[363185007,1748619040877,-420.0,0.00021917,2]
[363185008,1748619040886,-420.0,0.00021917,2]
[363185009,1748619040896,-500.0,0.00021917,2]
[363185010,1748619040905,-500.0,0.00021917,2]
[363185011,1748619040914,-571.1,0.00021917,2]
[363185012,1748619040923,-420.0,0.00021917,2]
[363185013,1748619040932,-420.0,0.00021917,2]
[363185014,1748619040941,-420.0,0.00021917,2]
[363185015,1748619040951,-420.0,0.00021917,2]
[363185016,1748619040961,-908.97,0.00021917,2]
[363185017,1748619040971,-420.0,0.00021917,2]
[363185018,1748619040981,-420.0,0.00021917,2]
[363185019,1748619040990,-420.0,0.00021917,2]
[363185020,1748619040999,-420.0,0.00021917,2]
[363185021,1748619041008,-420.0,0.00021917,2]
[363185022,1748619041017,-420.0,0.00021917,2]
[363185023,1748619041027,-420.0,0.00021917,2]
[363185024,1748619041036,-420.0,0.00021917,2]
[363185025,1748619041045,-420.0,0.00021917,2]
[363185026,1748619041054,-420.0,0.00021917,2]
[363185027,1748619041063,-420.0,0.00021917,2]
[363185028,1748619041072,-420.0,0.00021917,2]
[363185029,1748619041081,-423.97769909,0.00021917,2]
[363185030,1748619041091,-432.46,0.00021917,2]
[363185031,1748619041100,-422.51524074,0.00021917,2]
[363185032,1748619041109,-420.0,0.00021917,2]
[363185033,1748619041119,-420.0,0.00021917,2]
[363185034,1748619041128,-420.0,0.00021917,2]
[363185035,1748619041138,-420.0,0.00021917,2]
[363185036,1748619041147,-420.0,0.00021917,2]
[363185037,1748619041156,-420.0,0.00021917,2]
[363185038,1748619041165,-420.0,0.00021917,2]
[363185039,1748619041175,-420.0,0.00021917,2]
[363185040,1748619041187,-428.59427159,0.00021917,2]
[363185041,1748619041198,-514.16,0.00021917,2]
[363185042,1748619041208,-423.16090606,0.00021917,2]
[363185043,1748619041220,-420.0,0.00021917,2]
[363185044,1748619041229,-420.0,0.00021917,2]
[363185045,1748619041238,-420.0,0.00021917,2]
[363185046,1748619041248,-554.77393738,0.00021917,2]
[363185047,1748619041258,-428.02292285,0.00021917,2]
[363185048,1748619041268,-420.0,0.00021917,2]
[363185049,1748619041279,-420.0,0.00021917,2]
[363185050,1748619041288,-420.0,0.00021917,2]
[363185051,1748619041298,-420.0,0.00021917,2]
[363185052,1748619041308,-420.0,0.00021917,2]
[363185053,1748619041319,-420.0,0.00021917,2]
[363185054,1748619041329,-420.0,0.00021917,2]
[363185055,1748619041339,-420.0,0.00021917,2]
[363185056,1748619041349,-421.64241825,0.00021917,2]
[363185057,1748619041360,-420.0,0.00021917,2]
[363185058,1748619041370,-500.0,0.00021917,2]
[363185059,1748619041380,-420.0,0.00021917,2]
[363185060,1748619041388,-2098.6,0.00021917,2]
[363185061,1748619041397,-420.0,0.00021917,2]
[363185062,1748619041404,-420.0,0.00021917,2]
[363185063,1748619041412,-420.0,0.00021917,2]
[363185064,1748619041421,-420.0,0.00021917,2]
[363185065,1748619041429,-420.0,0.00021917,2]
[363185066,1748619041437,-420.0,0.00021917,2]
[363185067,1748619041447,-420.0,0.00021917,2]
[363185068,1748619041456,-490.07,0.00021917,2]
[363185069,1748619041466,-420.0,0.00021917,2]
[363185070,1748619041478,-420.0,0.00021917,2]
[363185071,1748619041487,-432.28903006,0.00021917,2]
[363185072,1748619041496,-420.0,0.00021917,2]
[363185073,1748619041506,-420.0,0.00021917,2]
[363185074,1748619041515,-420.0,0.00021917,2]
[363185075,1748619041524,-770.69,0.00021917,2]
[363185076,1748619041534,-420.0,0.00021917,2]
[363185077,1748619041544,-300.0,0.00021917,2]
[363185078,1748619041553,-420.0,0.00021917,2]
[363185079,1748619041563,-420.0,0.00021917,2]
[363185080,1748619041572,-420.0,0.00021917,2]
[363185081,1748619041581,-420.0,0.00021917,2]
[363185082,1748619041591,-890.15,0.00021917,2]
[363185083,1748619041601,-478.29367323,0.00021917,2]
[363185084,1748619041611,-420.0,0.00021917,2]
[363185085,1748619041620,-420.0,0.00021917,2]
[363185086,1748619041630,-420.0,0.00021917,2]
[363185087,1748619041640,-420.0,0.00021917,2]
[363185088,1748619041650,-420.0,0.00021917,2]
[363185089,1748619041659,-420.0,0.00021917,2]
[363185090,1748619041669,-420.86,0.00021917,2]
[363185091,1748619041679,-426.87,0.00021917,2]
[363185092,1748619041688,-420.0,0.00021917,2]
[363185093,1748619041698,-420.0,0.00021917,2]
[363185094,1748619041707,-500.0,0.00021917,2]
[363185095,1748619041716,-420.0,0.00021917,2]
[363185096,1748619041727,-420.0,0.00021917,2]
[363185097,1748619041739,-420.0,0.00021917,2]
[363185098,1748619041749,-420.0,0.00021917,2]
[363185099,1748619041761,-420.0,0.00021917,2]
[363185100,1748619041771,-424.91,0.00021917,2]
[363185101,1748619041783,-500.0,0.00021917,2]
[363185102,1748619041792,-420.0,0.00021917,2]
[363185103,1748619041801,-420.0,0.00021917,2]
[363185104,1748619041810,-420.0,0.00021917,2]
[363185105,1748619041821,-429.06,0.00021917,2]
[363185106,1748619041833,-420.0,0.00021917,2]
[363185107,1748619041842,-420.0,0.00021917,2]
[363185108,1748619041853,-420.0,0.00021917,2]
[363185109,1748619041864,-758.53,0.00021917,2]
[363185110,1748619041873,-420.0,0.00021917,2]
[363185111,1748619041883,-420.0,0.00021917,2]
[363185112,1748619041893,-420.0,0.00021917,2]
[363185113,1748619041903,-420.0,0.00021917,2]
[363185114,1748619041914,-420.0,0.00021917,2]
[363185115,1748619041925,-772.94,0.00021917,2]
[363185116,1748619041935,-420.0,0.00021917,2]
[363185117,1748619041946,-420.0,0.00021917,2]
[363185118,1748619041956,-420.0,0.00021917,2]
[363185119,1748619041967,-420.0,0.00021917,2]
[363185120,1748619041978,-420.0,0.00021917,2]
[363185121,1748619041987,-420.0,0.00021917,2]
[363185122,1748619041996,-427.85,0.00021917,2]
[363185123,1748619042008,-420.0,0.00021917,2]
[363185124,1748619042018,-420.0,0.00021917,2]
[363185125,1748619042030,-420.0,0.00021917,2]
[363185126,1748619042042,-420.0,0.00021917,2]
[363185127,1748619042052,-420.0,0.00021917,2]
[363185128,1748619042062,-500.0,0.00021917,2]
[363185129,1748619042073,-163.73422381,0.00021917,2]
[363185130,1748619042083,-456.87,0.00021917,2]
[363185131,1748619042095,-420.0,0.00021917,2]
[363185132,1748619042105,-420.0,0.00021917,2]
[363185133,1748619042117,-420.0,0.00021917,2]
[363185134,1748619042126,-420.0,0.00021917,2]
[363185135,1748619042136,-420.0,0.00021917,2]
[363185136,1748619042146,-420.0,0.00021917,2]
[363185137,1748619042156,-420.0,0.00021917,2]
[363185138,1748619042166,-420.0,0.00021917,2]
[363185139,1748619042175,-420.0,0.00021917,2]
[363185140,1748619042185,-420.0,0.00021917,2]
[363185141,1748619042196,-420.0,0.00021917,2]
[363185142,1748619042207,-420.0,0.00021917,2]
[363185143,1748619042216,-420.0,0.00021917,2]
[363185144,1748619042228,-420.0,0.00021917,2]
[363185145,1748619042237,-420.0,0.00021917,2]
[363185146,1748619042247,-420.0,0.00021917,2]
[363185147,1748619042256,-420.0,0.00021917,2]
[363185148,1748619042266,-420.0,0.00021917,2]
[363185149,1748619042275,-420.0,0.00021917,2]
[363185150,1748619042284,-420.0,0.00021917,2]
[363185151,1748619042294,-420.0,0.00021917,2]
[363185152,1748619042305,-420.0,0.00021917,2]
[363185153,1748619042316,-420.0,0.00021917,2]
[363185154,1748619042326,-420.0,0.00021917,2]
[363185155,1748619042335,-420.0,0.00021917,2]
[363185156,1748619042345,-420.0,0.00021917,2]
[363185157,1748619042354,-420.0,0.00021917,2]
[363185158,1748619042364,-420.0,0.00021917,2]
[363185160,1748619042373,-420.0,0.00021917,2]
[363185161,1748619042386,-369.02,0.00021917,2]
[363185162,1748619042396,-420.0,0.00021917,2]
[363185163,1748619042406,-777.89,0.00021917,2]
[363185164,1748619042416,-420.0,0.00021917,2]
[363185165,1748619042426,-424.28951,0.00021917,2]
[363185166,1748619042435,-420.0,0.00021917,2]
[363185167,1748619042445,-1819.65,0.00021917,2]
[363185168,1748619042455,-863.65,0.00021917,2]
[363185169,1748619042466,-420.0,0.00021917,2]
[363185170,1748619042478,-423.09837974,0.00021917,2]
[363185171,1748619042487,-420.0,0.00021917,2]
[363185172,1748619042497,-420.0,0.00021917,2]
[363185173,1748619042506,-420.0,0.00021917,2]
[363185174,1748619042516,-420.0,0.00021917,2]
[363185175,1748619042525,-420.0,0.00021917,2]
[363185176,1748619042535,-420.0,0.00021917,2]
[363185177,1748619042544,-420.0,0.00021917,2]
[363185178,1748619042553,-1212.65,0.00021917,2]
[363185179,1748619042563,-420.0,0.00021917,2]
[363185180,1748619042573,-420.0,0.00021917,2]
[363185181,1748619042583,-420.0,0.00021917,2]
[363185182,1748619042592,-420.0,0.00021917,2]
[363185184,1748619042603,-1175.81,0.00021917,2]
[363185187,1748619042613,-420.00000001,0.00021917,2]
[363185189,1748619042624,-420.0,0.00021917,2]
[363185190,1748619042636,-553.05,0.00021917,2]
[363185191,1748619042647,-474.05407702,0.00021917,2]
[363185192,1748619042656,-420.0,0.00021917,2]
[363185193,1748619042668,-796.08,0.00021917,2]
[363185194,1748619042679,-5000.0,0.00021917,2]
[363185195,1748619042689,-420.0,0.00021917,2]
[363185196,1748619042699,-420.0,0.00021917,2]
[363185197,1748619042710,-420.0,0.00021917,2]
[363185198,1748619042720,-420.0,0.00021917,2]
[363185199,1748619042729,-420.0,0.00021917,2]
[363185200,1748619042739,-420.0,0.00021917,2]
[363185201,1748619042751,-420.0,0.00021917,2]
[363185202,1748619042761,-523.03,0.00021917,2]
[363185203,1748619042772,-501.69,0.00021917,2]
[363185204,1748619042785,-420.0,0.00021917,2]
[363185205,1748619042795,-420.0,0.00021917,2]
[363185206,1748619042806,-425.30534291,0.00021917,2]
[363185207,1748619042816,-420.0,0.00021917,2]
[363185208,1748619042827,-420.0,0.00021917,2]
[363185209,1748619042838,-1811.35,0.00021917,2]
[363185210,1748619042849,-420.0,0.00021917,2]
[363185211,1748619042860,-420.0,0.00021917,2]
[363185212,1748619042870,-420.0,0.00021917,2]
[363185213,1748619042880,-420.0,0.00021917,2]
[363185214,1748619042890,-420.0,0.00021917,2]
[363185215,1748619042901,-420.0,0.00021917,2]
[363185216,1748619042912,-424.75345579,0.00021917,2]
[363185217,1748619042922,-420.0,0.00021917,2]
[363185218,1748619042932,-420.0,0.00021917,2]
[363185219,1748619042943,-822.17,0.00021917,2]
[363185220,1748619042954,-420.0,0.00021917,2]
[363185221,1748619042964,-420.0,0.00021917,2]
[363185222,1748619042975,-420.0,0.00021917,2]
[363185223,1748619042985,-496.62,0.00021917,2]
[363185224,1748619042994,-420.0,0.00021917,2]
[363185225,1748619043003,-641.0,0.00021917,2]
[363185226,1748619043013,-420.0,0.00021917,2]
[363185227,1748619043022,-420.0,0.00021917,2]
[363185228,1748619043032,-420.0,0.00021917,2]
[363185229,1748619043042,-463.01647017,0.00021917,2]
[363185230,1748619043051,-464.68,0.00021917,2]
[363185231,1748619043060,-420.0,0.00021917,2]
[363185232,1748619043070,-422.49321986,0.00021917,2]
[363185233,1748619043080,-421.9449894,0.00021917,2]
[363185234,1748619043090,-847.29,0.00021917,2]
[363185235,1748619043100,-420.0,0.00021917,2]
[363185237,1748619043109,-430.61388656,0.00021917,2]
[363185239,1748619043119,-420.0,0.00021917,2]
[363185241,1748619043128,-420.0,0.00021917,2]
[363185243,1748619043138,-1012.95,0.00021917,2]
[363185245,1748619043148,-1012.95,0.00021917,2]
[363185247,1748619043157,-1012.95,0.00021917,2]
[363185249,1748619043167,-420.0,0.00021917,2]
[363185251,1748619043176,-1012.95,0.00021917,2]
[363185253,1748619043186,-1102.55,0.00021917,2]
[363185255,1748619043199,-1012.95,0.00021917,2]
[363185257,1748619043208,-420.0,0.00021917,2]
[363185259,1748619043218,-443.43,0.00021917,2]
[363185262,1748619043228,-420.0,0.00021917,2]
[363185264,1748619043238,-420.0,0.00021917,2]
[363185266,1748619043247,-420.0,0.00021917,2]
[363185267,1748619043256,-420.0,0.00021917,2]
[363185269,1748619043265,-443.13,0.00021917,2]
[363185272,1748619043274,-420.0,0.00021917,2]
[363185274,1748619043283,-420.0,0.00021917,2]
[363185276,1748619043293,-420.0,0.00021917,2]
[363185278,1748619043302,-424.03643265,0.00021917,2]
[363185280,1748619043311,-751.91,0.00021917,2]
[363185282,1748619043323,-420.0,0.00021917,2]
[363185284,1748619043333,-420.0,0.00021917,2]
[363185286,1748619043344,-420.0,0.00021917,2]
[363185288,1748619043353,-420.0,0.00021917,2]
[363185290,1748619043363,-420.0,0.00021917,2]
[363185292,1748619043372,-420.0,0.00021917,2]
[363185293,1748619043382,-420.0,0.00021917,2]
[363185294,1748619043392,-420.0,0.00021917,2]
[363185295,1748619043402,-420.0,0.00021917,2]
[363185296,1748619043411,-420.0,0.00021917,2]
[363185297,1748619043420,-420.0,0.00021917,2]
[363185298,1748619043429,-420.0,0.00021917,2]
[363185299,1748619043438,-337.10527809,0.00021917,2]
[363185300,1748619043448,-420.0,0.00021917,2]
[363185301,1748619043458,-420.0,0.00021917,2]
[363185302,1748619043467,-420.0,0.00021917,2]
[363185303,1748619043480,-518.42,0.00021917,2]
[363185304,1748619043490,-420.0,0.00021917,2]
[363185305,1748619043499,-546.34114829,0.00021917,2]
[363185306,1748619043509,-420.0,0.00021917,2]
[363185307,1748619043518,-420.0,0.00021917,2]
[363185308,1748619043528,-420.0,0.00021917,2]
[363185309,1748619043538,-420.0,0.00021917,2]
[363185310,1748619043547,-1199.0,0.00021917,2]
[363185311,1748619043557,-420.0,0.00021917,2]
[363185312,1748619043567,-514.17889968,0.00021917,2]
[363185313,1748619043576,-420.0,0.00021917,2]
[363185314,1748619043586,-841.83,0.00021917,2]
[363185315,1748619043596,-1711.43,0.00021917,2]
[363185316,1748619043812,-420.0,0.00021917,2]
[363185317,1748619043823,-420.0,0.00021917,2]
[363185318,1748619043833,-431.88224127,0.00021917,2]
[363185319,1748619043843,-420.0,0.00021917,2]
[363185320,1748619043852,-420.0,0.00021917,2]
[363185321,1748619043864,-537.56980654,0.00021917,2]
[363185322,1748619043874,-508.53,0.00021917,2]
[363185323,1748619043883,-420.0,0.00021917,2]
[363185324,1748619043893,-948.67,0.00021917,2]
[363185325,1748619043902,-420.0,0.00021917,2]
[363185326,1748619043911,-420.0,0.00021917,2]
[363185327,1748619043922,-400.8400434,0.00021917,2]
[363185328,1748619043931,-420.0,0.00021917,2]
[363185329,1748619043941,-420.0,0.00021917,2]
[363185330,1748619043951,-420.0,0.00021917,2]
[363185331,1748619043960,-610.77,0.00021917,2]
[363185332,1748619043972,-420.0,0.00021917,2]
[363185333,1748619043983,-423.52,0.00021917,2]
[363185334,1748619043993,-420.0,0.00021917,2]
[363185335,1748619044003,-420.16081802,0.00021917,2]
[363185336,1748619044012,-2171.03,0.00021917,2]
[363185337,1748619044022,-420.0,0.00021917,2]
[363185338,1748619044031,-420.0,0.00021917,2]
[363185339,1748619044040,-424.40465464,0.00021917,2]
[363185340,1748619044052,-420.0,0.00021917,2]
[363185341,1748619044061,-422.16554547,0.00021917,2]
[363185342,1748619044071,-420.0,0.00021917,2]
[363185343,1748619044080,-945.97,0.00021917,2]
[363185344,1748619044090,-572.48,0.00021917,2]
[363185345,1748619044099,-420.0,0.00021917,2]
[363185346,1748619044108,-427.63535684,0.00021917,2]
[363185347,1748619044117,-350.60264109,0.00021917,2]
[363185348,1748619044127,-420.0,0.00021917,2]
[363185349,1748619044137,-420.0,0.00021917,2]
[363185350,1748619044146,-418.15970756,0.00021917,2]
[363185351,1748619044156,-420.0,0.00021917,2]
[363185352,1748619044165,-420.0,0.00021917,2]
[363185353,1748619044175,-187.99940836,0.00021917,2]
[363185354,1748619044184,-420.0,0.00021917,2]
[363185355,1748619044194,-1319.71,0.00021917,2]
[363185356,1748619044205,-420.0,0.00021917,2]
[363185357,1748619044214,-420.0,0.00021917,2]
[363185358,1748619044226,-420.0,0.00021917,2]
[363185359,1748619044235,-420.0,0.00021917,2]
[363185360,1748619044245,-456.76,0.00021917,2]
[363185361,1748619044254,-420.0,0.00021917,2]
[363185362,1748619044264,-420.0,0.00021917,2]
[363185363,1748619044274,-1456.24,0.00021917,2]
[363185364,1748619044283,-420.0,0.00021917,2]
[363185365,1748619044293,-420.0,0.00021917,2]
[363185366,1748619044303,-420.0,0.00021917,2]
[363185367,1748619044312,-420.0,0.00021917,2]
[363185368,1748619044322,-420.0,0.00021917,2]
[363185369,1748619044332,-485.03304307,0.00021917,2]
[363185370,1748619044342,-636.09,0.00021917,2]
[363185371,1748619044353,-420.0,0.00021917,2]
[363185372,1748619044374,-420.0,0.00021917,2]
[363185373,1748619044385,-420.0,0.00021917,2]
[363185374,1748619044395,-420.0,0.00021917,2]
[363185375,1748619044404,-420.0,0.00021917,2]
[363185376,1748619044415,-425.19168357,0.00021917,2]
[363185377,1748619044425,-420.0,0.00021917,2]
[363185378,1748619044435,-420.0,0.00021917,2]
[363185379,1748619044445,-420.0,0.00021917,2]
[363185380,1748619044456,-853.5,0.00021917,2]
[363185381,1748619044466,-743.92,0.00021917,2]
[363185382,1748619044481,-420.0,0.00021917,2]
[363185383,1748619044491,-420.0,0.00021917,2]
[363185384,1748619044501,-420.0,0.00021917,2]
[363185385,1748619044512,-420.0,0.00021917,2]
[363185386,1748619044522,-209.53737944,0.00021917,2]
[363185387,1748619044533,-420.0,0.00021917,2]
[363185388,1748619044543,-1000.0,0.00021917,2]
[363185389,1748619044553,-420.0,0.00021917,2]
[363185390,1748619044563,-420.0,0.00021917,2]
[363185391,1748619044573,-420.0,0.00021917,2]
[363185392,1748619044583,-420.0,0.00021917,2]
[363185393,1748619044593,-420.0,0.00021917,2]
[363185394,1748619044603,-1258.56,0.00021917,2]
[363185395,1748619044614,-420.0,0.00021917,2]
[363185396,1748619044624,-652.14,0.00021917,2]
[363185397,1748619044635,-425.39588672,0.00021917,2]
[363185398,1748619044646,-420.0,0.00021917,2]
[363185399,1748619044656,-420.0,0.00021917,2]
[363185400,1748619044665,-569.93,0.00021917,2]
[363185401,1748619044675,-1419.49,0.00021917,2]
[363185402,1748619044685,-420.0,0.00021917,2]
[363185403,1748619044695,-420.0,0.00021917,2]
[363185404,1748619044705,-429.58889505,0.00021917,2]
[363185405,1748619044714,-584.74,0.00021917,2]
[363185406,1748619044726,-516.99369896,0.00021917,2]
[363185407,1748619044736,-420.0,0.00021917,2]
[363185408,1748619044746,-420.0,0.00021917,2]
[363185409,1748619044757,-420.0,0.00021917,2]
[363185410,1748619044767,-420.0,0.00021917,2]
[363185411,1748619044777,-755.51,0.00021917,2]
[363185412,1748619044791,-582.04,0.00021917,2]
[363185413,1748619044801,-420.0,0.00021917,2]
[363185414,1748619044811,-420.0,0.00021917,2]
[363185415,1748619044821,-420.0,0.00021917,2]
[363185416,1748619044831,-420.0,0.00021917,2]
[363185417,1748619044840,-420.0,0.00021917,2]
[363185418,1748619044850,-420.0,0.00021917,2]
[363185419,1748619044860,-420.0,0.00021917,2]
[363185420,1748619044871,-420.0,0.00021917,2]
[363185421,1748619044881,-420.0,0.00021917,2]
[363185422,1748619044891,-781.6,0.00021917,2]
[363185423,1748619044900,-430.16727414,0.00021917,2]
[363185424,1748619044910,-420.0,0.00021917,2]
[363185425,1748619044919,-1041.01,0.00021917,2]
[363185426,1748619044930,-420.0,0.00021917,2]
[363185427,1748619044939,-420.0,0.00021917,2]
[363185428,1748619044949,-1369.52,0.00021917,2]
[363185429,1748619044959,-474.65,0.00021917,2]
[363185430,1748619044969,-420.0,0.00021917,2]
[363185431,1748619044979,-420.0,0.00021917,2]
[363185432,1748619044989,-463.6,0.00021917,2]
[363185433,1748619044999,-420.0,0.00021917,2]
[363185434,1748619045008,-420.0,0.00021917,2]
[363185435,1748619045018,-385.31970606,0.00021917,2]
[363185436,1748619045028,-1379.11,0.00021917,2]
[363185437,1748619045037,-420.0,0.00021917,2]
[363185438,1748619045047,-420.0,0.00021917,2]
[363185439,1748619045056,-420.0,0.00021917,2]
[363185440,1748619045066,-420.0,0.00021917,2]
[363185441,1748619045076,-420.0,0.00021917,2]
[363185442,1748619045086,-420.0,0.00021917,2]
[363185443,1748619045095,-666.7,0.00021917,2]
[363185444,1748619045105,-420.0,0.00021917,2]
[363185445,1748619045115,-420.0,0.00021917,2]
[363185446,1748619045126,-420.0,0.00021917,2]
[363185447,1748619045136,-420.0,0.00021917,2]
[363185448,1748619045145,-741.8,0.00021917,2]
[363185449,1748619045156,-420.0,0.00021917,2]
[363185450,1748619045167,-1319.43,0.00021917,2]
[363185451,1748619045178,-420.0,0.00021917,2]
[363185452,1748619045188,-420.0,0.00021917,2]
[363185453,1748619045197,-420.0,0.00021917,2]
[363185454,1748619045207,-576.82,0.00021917,2]
[363185455,1748619045217,-420.0,0.00021917,2]
[363185456,1748619045228,-693.89,0.00021917,2]
[363185457,1748619045238,-420.0,0.00021917,2]
[363185458,1748619045247,-420.0,0.00021917,2]
[363185459,1748619045257,-561.65,0.00021917,2]
[363185460,1748619045267,-421.24263523,0.00021917,2]
[363185461,1748619045276,-420.0,0.00021917,2]
[363185462,1748619045286,-420.0,0.00021917,2]
[363185463,1748619045296,-420.0,0.00021917,2]
[363185464,1748619045305,-555.0287129,0.00021917,2]
[363185465,1748619045314,-420.0,0.00021917,2]
[363185466,1748619045323,-1160.92,0.00021917,2]
[363185468,1748619045332,-420.0,0.00021917,2]
[363185470,1748619045342,-501.87152561,0.00021917,2]
[363185471,1748619045351,-420.0,0.00021917,2]
[363185473,1748619045360,-1207.82,0.00021917,2]
[363185474,1748619045368,-420.0,0.00021917,2]
[363185476,1748619045377,-472.93,0.00021917,2]
[363185477,1748619045387,-420.0,0.00021917,2]
[363185478,1748619045397,-421.61674665,0.00021917,2]
[363185479,1748619045406,-1168.26,0.00021917,2]
[363185480,1748619045416,-1166.17,0.00021917,2]
[363185481,1748619045425,-420.0,0.00021917,2]
[363185482,1748619045435,-420.0,0.00021917,2]
[363185483,1748619045444,-423.54685664,0.00021917,2]
[363185484,1748619045454,-420.0,0.00021917,2]
[363185485,1748619045466,-420.0,0.00021917,2]
[363185486,1748619045479,-466.98,0.00021917,2]
[363185487,1748619045491,-420.0,0.00021917,2]
[363185488,1748619045502,-420.0,0.00021917,2]
[363185489,1748619045512,-784.43,0.00021917,2]
[363185490,1748619045521,-723.56,0.00021917,2]
[363185491,1748619045531,-1364.89,0.00021917,2]
[363185492,1748619045541,-422.18267876,0.00021917,2]
[363185493,1748619045552,-587.51,0.00021917,2]
[363185494,1748619045562,-421.43523036,0.00021917,2]
[363185495,1748619045572,-420.0,0.00021917,2]
[363185496,1748619045581,-420.0,0.00021917,2]
[363185497,1748619045591,-801.75,0.00021917,2]
[363185498,1748619045600,-862.94,0.00021917,2]
[363185499,1748619045610,-420.0,0.00021917,2]
[363185500,1748619045620,-420.0,0.00021917,2]
[363185501,1748619045630,-604.61,0.00021917,2]
[363185502,1748619045639,-420.0,0.00021917,2]
[363185503,1748619045648,-635.16,0.00021917,2]
[363185504,1748619045658,-420.0,0.00021917,2]
[363185505,1748619045668,-1137.25,0.00021917,2]
[363185506,1748619045677,-420.0,0.00021917,2]
[363185507,1748619045687,-420.0,0.00021917,2]
[363185508,1748619045696,-420.0,0.00021917,2]
[363185509,1748619045706,-786.55,0.00021917,2]
[363185510,1748619045715,-420.0,0.00021917,2]
[363185511,1748619045727,-420.0,0.00021917,2]
[363185512,1748619045736,-420.0,0.00021917,2]
[363185513,1748619045746,-420.0,0.00021917,2]
[363185514,1748619045755,-420.0,0.00021917,2]
[363185515,1748619045767,-406.42446387,0.00021917,2]
[363185516,1748619045778,-420.0,0.00021917,2]
[363185517,1748619045792,-420.0,0.00021917,2]
[363185518,1748619045801,-420.96855741,0.00021917,2]
[363185519,1748619045813,-420.0,0.00021917,2]
[363185520,1748619045823,-1160.03,0.00021917,2]
[363185521,1748619045834,-523.95,0.00021917,2]
[363185522,1748619045845,-420.0,0.00021917,2]
[363185523,1748619045855,-673.65,0.00021917,2]
[363185524,1748619045866,-420.0,0.00021917,2]
[363185525,1748619045877,-420.0,0.00021917,2]
[363185526,1748619045888,-931.25,0.00021917,2]
[363185527,1748619045900,-420.0,0.00021917,2]
[363185528,1748619045912,-420.0,0.00021917,2]
[363185529,1748619045923,-422.82350075,0.00021917,2]
[363185530,1748619045935,-420.0,0.00021917,2]